fUST/lending_fUST_20250423
["ID","MTS","AMOUNT","RATE_DAILY","PERIOD"]
[358779054,1745422265173,-151.0,0.00020547,2]
[358779055,1745422265183,-815.0,0.00020547,2]
[358779056,1745422265194,-500.0,0.00020547,2]
[358779057,1745422265203,-831.25,0.00020547,2]
[358779058,1745422265213,-2175.19,0.00020547,2]
[358779059,1745422265223,-4454.73,0.00020547,2]
[358779060,1745422265233,-500.0,0.00020547,2]
[358779061,1745422265243,-4421.38,0.00020547,2]
[358779062,1745422265254,-500.0,0.00020547,2]
[358779063,1745422265264,-500.0,0.00020547,2]
[358779064,1745422265274,-500.0,0.00020547,2]
[358779065,1745422265284,-500.0,0.00020547,2]
[358779066,1745422265294,-182.29,0.00020547,2]
[358779067,1745422265304,-500.0,0.00020547,2]
[358779068,1745422265315,-500.0,0.00020547,2]
[358779069,1745422265324,-500.0,0.00020547,2]
[358779070,1745422265334,-500.0,0.00020547,2]
[358779071,1745422265344,-500.0,0.00020547,2]
[358779072,1745422265354,-500.0,0.00020547,2]
[358779073,1745422265364,-500.0,0.00020547,2]
[358779074,1745422265375,-500.0,0.00020547,2]
[358779075,1745422265387,-500.0,0.00020547,2]
[358779076,1745422265397,-500.0,0.00020547,2]
[358779077,1745422265407,-500.0,0.00020547,2]
[358779078,1745422265418,-151.0,0.00020547,2]
[358779079,1745422265428,-613.64493838,0.00020547,2]
[358779080,1745422265438,-500.0,0.00020547,2]
[358779081,1745422265448,-500.0,0.00020547,2]
[358779082,1745422265458,-500.0,0.00020547,2]
[358779083,1745422265469,-500.0,0.00020547,2]
[358779084,1745422265481,-500.0,0.00020547,2]
[358779085,1745422265491,-500.0,0.00020547,2]
[358779086,1745422265501,-1146.61,0.00020547,2]
[358779087,1745422265511,-733.07,0.00020547,2]
[358779088,1745422265522,-500.0,0.00020547,2]
[358779089,1745422265532,-500.0,0.00020547,2]
[358779090,1745422265542,-500.0,0.00020547,2]
[358779091,1745422265552,-500.0,0.00020547,2]
[358779092,1745422265562,-500.0,0.00020547,2]
[358779093,1745422265572,-500.0,0.00020547,2]
[358779094,1745422265582,-500.0,0.00020547,2]
[358779095,1745422265592,-500.0,0.00020547,2]
[358779096,1745422265602,-500.0,0.00020547,2]
[358779097,1745422265611,-500.0,0.00020547,2]
[358779098,1745422265621,-500.0,0.00020547,2]
[358779099,1745422265631,-398.80724433,0.00020547,2]
[358779100,1745422265640,-559.8,0.00020547,2]
[358779101,1745422265651,-151.0,0.00020547,2]
[358779102,1745422265660,-191.659304,0.00020547,2]
[358779103,1745422265670,-564.99,0.00020547,2]
[358779104,1745422265679,-551.66,0.00020547,2]
[358779105,1745422265690,-500.0,0.00020547,2]
[358779106,1745422265699,-500.0,0.00020547,2]
[358779107,1745422265709,-1261.588818,0.00020547,2]
[358779108,1745422265719,-1261.588818,0.00020547,2]
[358779109,1745422265729,-500.0,0.00020547,2]
[358779110,1745422265738,-500.0,0.00020547,2]
[358779111,1745422265748,-500.0,0.00020547,2]
[358779112,1745422265758,-151.0,0.00020547,2]
[358779113,1745422265768,-500.0,0.00020547,2]
[358779114,1745422265778,-762.07,0.00020547,2]
[358779115,1745422265786,-1115.7,0.00020547,2]
[358779116,1745422265796,-151.0,0.00020547,2]
[358779117,1745422265805,-151.0,0.00020547,2]
[358779118,1745422265816,-500.0,0.00020547,2]
[358779119,1745422265828,-688.43,0.00020547,2]
[358779120,1745422265838,-151.0,0.00020547,2]
[358779121,1745422265847,-151.0,0.00020547,2]
[358779122,1745422265858,-500.0,0.00020547,2]
[358779123,1745422265867,-2630.14,0.00020547,2]
[358779124,1745422265877,-500.0,0.00020547,2]
[358779125,1745422265890,-500.0,0.00020547,2]
[358779126,1745422265900,-500.0,0.00020547,2]
[358779127,1745422265910,-500.0,0.00020547,2]
[358779128,1745422265919,-500.0,0.00020547,2]
[358779129,1745422265929,-500.0,0.00020547,2]
[358779130,1745422265939,-764.95,0.00020547,2]
[358779131,1745422265948,-884.75,0.00020547,2]
[358779132,1745422265960,-500.0,0.00020547,2]
[358779133,1745422265969,-500.0,0.00020547,2]
[358779134,1745422265979,-3501.3,0.00020547,2]
[358779135,1745422265990,-500.0,0.00020547,2]
[358779136,1745422266000,-500.0,0.00020547,2]
[358779137,1745422266010,-1338.63,0.00020547,2]
[358779138,1745422266019,-502.07,0.00020547,2]
[358779139,1745422266029,-577.68,0.00020547,2]
[358779140,1745422266040,-500.0,0.00020547,2]
[358779141,1745422266050,-4051.75,0.00020547,2]
[358779142,1745422266060,-500.0,0.00020547,2]
[358779143,1745422266070,-500.0,0.00020547,2]
[358779144,1745422266079,-668.05,0.00020547,2]
[358779145,1745422266089,-500.0,0.00020547,2]
[358779146,1745422266099,-195.822074,0.00020547,2]
[358779147,1745422266109,-500.0,0.00020547,2]
[358779148,1745422266120,-195.822074,0.00020547,2]
[358779149,1745422266129,-195.822074,0.00020547,2]
[358779150,1745422266141,-195.822074,0.00020547,2]
[358779151,1745422266151,-500.0,0.00020547,2]
[358779152,1745422266161,-500.0,0.00020547,2]
[358779153,1745422266171,-633.95,0.00020547,2]
[358779154,1745422266181,-500.0,0.00020547,2]
[358779155,1745422266191,-1302.8,0.00020547,2]
[358779156,1745422266200,-500.0,0.00020547,2]
[358779157,1745422266209,-1153.65,0.00020547,2]
[358779158,1745422266219,-553.58,0.00020547,2]
[358779159,1745422266230,-437.27566844,0.00020547,2]
[358779160,1745422266240,-716.26,0.00020547,2]
[358779161,1745422266250,-500.0,0.00020547,2]
[358779162,1745422266260,-500.0,0.00020547,2]
[358779163,1745422266270,-500.0,0.00020547,2]
[358779164,1745422266280,-500.0,0.00020547,2]
[358779165,1745422266291,-500.0,0.00020547,2]
[358779166,1745422266301,-12296.18,0.00020547,2]
[358779167,1745422266311,-500.0,0.00020547,2]
[358779168,1745422266321,-1046.67,0.00020547,2]
[358779169,1745422266330,-500.0,0.00020547,2]
[358779170,1745422266340,-851.89,0.00020547,2]
[358779171,1745422266350,-500.0,0.00020547,2]
[358779172,1745422266360,-534.56,0.00020547,2]
[358779173,1745422266370,-1188.25,0.00020547,2]
[358779174,1745422266379,-500.0,0.00020547,2]
[358779175,1745422266393,-500.0,0.00020547,2]
[358779176,1745422266403,-500.0,0.00020547,2]
[358779177,1745422266555,-377.820616,0.00020547,2]
[358779178,1745422266572,-731.6,0.00020547,2]
[358779179,1745422266583,-377.820616,0.00020547,2]
[358779180,1745422266603,-12626.43,0.00020547,2]
[358779181,1745422266612,-696.88,0.00020547,2]
[358779182,1745422266621,-500.0,0.00020547,2]
[358779183,1745422266631,-1205.58,0.00020547,2]
[358779184,1745422266647,-377.820616,0.00020547,2]
[358779185,1745422266656,-377.820616,0.00020547,2]
[358779186,1745422266666,-151.0,0.00020547,2]
[358779187,1745422266676,-500.0,0.00020547,2]
[358779188,1745422266686,-500.0,0.00020547,2]
[358779189,1745422266695,-500.0,0.00020547,2]
[358779190,1745422266705,-1012.84,0.00020547,2]
[358779191,1745422266714,-500.0,0.00020547,2]
[358779192,1745422266724,-500.0,0.00020547,2]
[358779193,1745422266734,-151.0,0.00020547,2]
[358779194,1745422266743,-500.0,0.00020547,2]
[358779195,1745422266753,-4914.19,0.00020547,2]
[358779196,1745422266762,-500.0,0.00020547,2]
[358779197,1745422266772,-4299.91,0.00020547,2]
[358779198,1745422266782,-510.48,0.00020547,2]
[358779199,1745422266792,-707.64,0.00020547,2]
[358779200,1745422266801,-1181.56,0.00020547,2]
[358779201,1745422266811,-1035.17,0.00020547,2]
[358779202,1745422266821,-500.0,0.00020547,2]
[358779203,1745422266831,-863.0,0.00020547,2]
[358779204,1745422266841,-505.42431497,0.00020547,2]
[358779205,1745422266851,-834.94,0.00020547,2]
[358779206,1745422266861,-3435.75,0.00020547,2]
[358779207,1745422266871,-2278.45,0.00020547,2]
[358779208,1745422266880,-753.56,0.00020547,2]
[358779209,1745422266895,-500.0,0.00020547,2]
[358779210,1745422266905,-530.38,0.00020547,2]
[358779211,1745422266914,-814.85,0.00020547,2]
[358779212,1745422266924,-535.21,0.00020547,2]
[358779213,1745422266934,-500.0,0.00020547,2]
[358779214,1745422266945,-500.0,0.00020547,2]
[358779215,1745422266955,-500.0,0.00020547,2]
[358779216,1745422266965,-500.0,0.00020547,2]
[358779217,1745422266975,-890.07,0.00020547,2]
[358779218,1745422266984,-615.6,0.00020547,2]
[358779219,1745422266994,-957.38,0.00020547,2]
[358779220,1745422267004,-558.82,0.00020547,2]
[358779221,1745422267015,-926.97,0.00020547,2]
[358779222,1745422267025,-707.38,0.00020547,2]
[358779223,1745422267035,-1273.56,0.00020547,2]
[358779224,1745422267045,-500.0,0.00020547,2]
[358779225,1745422267055,-500.0,0.00020547,2]
[358779226,1745422267065,-500.0,0.00020547,2]
[358779227,1745422267074,-1103.17,0.00020547,2]
[358779228,1745422267084,-500.0,0.00020547,2]
[358779229,1745422267094,-500.0,0.00020547,2]
[358779230,1745422267104,-500.0,0.00020547,2]
[358779231,1745422267113,-500.0,0.00020547,2]
[358779232,1745422267123,-500.0,0.00020547,2]
[358779233,1745422267136,-500.0,0.00020547,2]
[358779234,1745422267146,-500.0,0.00020547,2]
[358779235,1745422267156,-500.0,0.00020547,2]
[358779236,1745422267166,-500.0,0.00020547,2]
[358779237,1745422267176,-500.0,0.00020547,2]
[358779238,1745422267186,-657.04,0.00020547,2]
[358779239,1745422267197,-500.0,0.00020547,2]
[358779240,1745422267207,-500.0,0.00020547,2]
[358779241,1745422267217,-500.0,0.00020547,2]
[358779242,1745422267227,-500.0,0.00020547,2]
[358779243,1745422267237,-500.0,0.00020547,2]
[358779244,1745422267246,-2543.41,0.00020547,2]
[358779245,1745422267256,-1609.82,0.00020547,2]
[358779246,1745422267265,-783.91,0.00020547,2]
[358779247,1745422267275,-7498.68,0.00020547,2]
[358779248,1745422267285,-500.0,0.00020547,2]
[358779249,1745422267294,-2933.96,0.00020547,2]
[358779250,1745422267304,-692.21,0.00020547,2]
[358779251,1745422267314,-500.0,0.00020547,2]
[358779252,1745422267323,-935.39,0.00020547,2]
[358779253,1745422267333,-5239.0,0.00020547,2]
[358779254,1745422267342,-500.0,0.00020547,2]
[358779255,1745422267352,-537.86,0.00020547,2]
[358779256,1745422267362,-500.0,0.00020547,2]
[358779257,1745422267372,-616.52,0.00020547,2]
[358779258,1745422267382,-500.0,0.00020573,2]
[358779259,1745422267393,-151.0,0.000206,2]
[358779260,1745422267403,-151.0,0.000206,2]
[358779261,1745422267413,-151.0,0.000206,2]
[358779262,1745422267423,-14749.42243624,0.0002061,2]
[358779263,1745422267433,-151.0,0.0002061,2]
[358779264,1745422267443,-1261.588818,0.0002061,2]
[358779265,1745422267453,-1261.588818,0.0002061,2]
[358779266,1745422267462,-193.135109,0.0002061,2]
[358779267,1745422267472,-200.0,0.00020674,7]
[358779268,1745422267482,-3328.64,0.000208,2]
[358779269,1745422267492,-160.0,0.000208,3]
[358779270,1745422267501,-12573.79847128,0.000208,3]
[358779271,1745422267511,-160.0,0.000208,3]
[358779272,1745422267521,-151.0,0.0002081,2]
[358779273,1745422267530,-151.0,0.00020821,2]
[358779274,1745422267540,-151.0,0.00020821,2]
[358779275,1745422267549,-151.0,0.00020821,2]
[358779276,1745422267559,-500.0,0.00020821,2]
[358779277,1745422267569,-500.0,0.00020821,2]
[358779278,1745422267578,-151.0,0.00020821,2]
[358779279,1745422267588,-500.0,0.00020821,2]
[358779280,1745422267597,-151.0,0.00020821,2]
[358779281,1745422267607,-594.19,0.00020821,2]
[358779282,1745422267616,-909.19,0.00020821,2]
[358779283,1745422267626,-500.0,0.00020821,2]
[358779284,1745422267637,-500.0,0.00020821,2]
[358779285,1745422267647,-500.0,0.00020821,2]
[358779286,1745422267657,-500.0,0.00020821,2]
[358779287,1745422267667,-500.0,0.00020821,2]
[358779288,1745422267677,-500.0,0.00020821,2]
[358779289,1745422267686,-500.0,0.00020821,2]
[358779290,1745422267695,-896.26,0.00020821,2]
[358779291,1745422267705,-1026.46,0.00020821,2]
[358779292,1745422267715,-500.0,0.00020821,2]
[358779293,1745422267724,-500.0,0.00020821,2]
[358779294,1745422267734,-500.0,0.00020821,2]
[358779295,1745422267743,-500.0,0.00020821,2]
[358779296,1745422267754,-519.07,0.00020821,2]
[358779297,1745422267764,-500.0,0.00020821,2]
[358779298,1745422267773,-500.0,0.00020821,2]
[358779299,1745422267783,-500.0,0.00020821,2]
[358779300,1745422267793,-151.0,0.00020821,2]
[358779301,1745422267802,-151.0,0.00020821,2]
[358779302,1745422267812,-500.0,0.00020821,2]
[358779303,1745422267824,-151.0,0.00020821,2]
[358779304,1745422267833,-500.0,0.00020821,2]
[358779305,1745422267843,-633.865143,0.00020821,2]
[358779306,1745422267853,-151.0,0.00020821,2]
[358779307,1745422267862,-500.0,0.00020821,2]
[358779308,1745422267871,-500.0,0.00020821,2]
[358779309,1745422267881,-500.0,0.00020821,2]
[358779310,1745422267891,-500.0,0.00020821,2]
[358779311,1745422267905,-1150.28,0.00020821,2]
[358779312,1745422267916,-500.0,0.00020821,2]
[358779313,1745422267928,-251.765975,0.00020821,2]
[358779314,1745422267938,-251.765975,0.00020821,2]
[358779315,1745422267948,-500.0,0.00020821,2]
[358779316,1745422267958,-544.77,0.00020821,2]
[358779317,1745422267968,-251.765975,0.00020821,2]
[358779318,1745422267977,-251.765975,0.00020821,2]
[358779319,1745422267988,-500.0,0.00020821,2]
[358779320,1745422267998,-500.0,0.00020821,2]
[358779321,1745422268007,-151.0,0.00020821,2]
[358779322,1745422268017,-151.0,0.00020821,2]
[358779323,1745422268027,-899.96,0.00020821,2]
[358779324,1745422268037,-500.0,0.00020821,2]
[358779325,1745422268047,-500.0,0.00020821,2]
[358779326,1745422268056,-500.0,0.00020821,2]
[358779327,1745422268066,-500.0,0.00020821,2]
[358779328,1745422268076,-500.0,0.00020821,2]
[358779329,1745422268085,-3329.35,0.00020821,2]
[358779330,1745422268096,-500.0,0.00020821,2]
[358779331,1745422268105,-500.0,0.00020821,2]
[358779332,1745422268115,-528.28,0.00020821,2]
[358779333,1745422268124,-515.31242859,0.00020821,2]
[358779334,1745422268137,-644.46,0.00020821,2]
[358779335,1745422268147,-500.0,0.00020821,2]
[358779336,1745422268156,-500.0,0.00020821,2]
[358779337,1745422268166,-500.0,0.00020821,2]
[358779338,1745422268176,-500.0,0.00020821,2]
[358779339,1745422268186,-500.0,0.00020821,2]
[358779340,1745422268195,-151.0,0.00020821,2]
[358779341,1745422268205,-151.0,0.00020821,2]
[358779342,1745422268214,-756.81,0.00020821,2]
[358779343,1745422268224,-572.66,0.00020821,2]
[358779344,1745422268234,-500.0,0.00020821,2]
[358779345,1745422268245,-500.0,0.00020821,2]
[358779346,1745422268255,-500.0,0.00020821,2]
[358779347,1745422268264,-903.55,0.00020821,2]
[358779348,1745422268274,-506.12,0.00020821,2]
[358779349,1745422268284,-500.0,0.00020821,2]
[358779350,1745422268294,-500.0,0.00020821,2]
[358779351,1745422268304,-500.0,0.00020821,2]
[358779352,1745422268313,-500.0,0.00020821,2]
[358779353,1745422268323,-500.0,0.00020821,2]
[358779354,1745422268333,-500.0,0.00020821,2]
[358779355,1745422268343,-2150.63,0.00020821,2]
[358779356,1745422268352,-785.397552,0.00020821,2]
[358779357,1745422268362,-785.397552,0.00020821,2]
[358779358,1745422268371,-500.0,0.00020821,2]
[358779359,1745422268380,-785.397552,0.00020821,2]
[358779360,1745422268392,-785.397552,0.00020821,2]
[358779361,1745422268401,-152.43581,0.00020821,2]
[358779362,1745422268410,-151.0,0.00020821,2]
[358779363,1745422268419,-500.0,0.00020821,2]
[358779364,1745422268429,-500.0,0.00020821,2]
[358779365,1745422268438,-614.57,0.00020821,2]
[358779366,1745422268447,-677.08,0.00020821,2]
[358779367,1745422268456,-500.0,0.00020821,2]
[358779368,1745422268466,-596.25,0.00020821,2]
[358779369,1745422268475,-740.32,0.00020821,2]
[358779370,1745422268485,-500.0,0.00020821,2]
[358779371,1745422268495,-500.0,0.00020821,2]
[358779372,1745422268505,-855.06,0.00020821,2]
[358779373,1745422268514,-151.0,0.00020821,2]
[358779374,1745422268548,-151.0,0.00020821,2]
[358779375,1745422268558,-815.0,0.00020821,2]
[358779376,1745422268567,-500.0,0.00020821,2]
[358779377,1745422268577,-831.25,0.00020821,2]
[358779378,1745422268587,-2175.19,0.00020821,2]
[358779379,1745422268597,-4454.73,0.00020821,2]
[358779380,1745422268606,-500.0,0.00020821,2]
[358779381,1745422268616,-4421.38,0.00020821,2]
[358779382,1745422268625,-500.0,0.00020821,2]
[358779383,1745422268636,-500.0,0.00020821,2]
[358779384,1745422268645,-500.0,0.00020821,2]
[358779385,1745422268655,-500.0,0.00020821,2]
[358779386,1745422268665,-500.0,0.00020821,2]
[358779387,1745422268674,-500.0,0.00020821,2]
[358779388,1745422268683,-283.74870575,0.00020821,2]
[358779389,1745422268693,-500.0,0.00020821,2]
[358779390,1745422268702,-500.0,0.00020821,2]
[358779391,1745422268712,-500.0,0.00020821,2]
[358779392,1745422268721,-225.15,0.00020821,2]
[358779393,1745422268731,-500.0,0.00020821,2]
[358779394,1745422268740,-510.99789383,0.00020821,2]
[358779395,1745422268749,-500.0,0.00020821,2]
[358779396,1745422268758,-500.0,0.00020821,2]
[358779397,1745422268768,-500.0,0.00020821,2]
[358779398,1745422268777,-500.0,0.00020821,2]
[358779399,1745422268787,-500.0,0.00020821,2]
[358779400,1745422268796,-500.0,0.00020821,2]
[358779401,1745422268805,-500.0,0.00020821,2]
[358779402,1745422268815,-500.0,0.00020821,2]
[358779403,1745422268830,-1146.61,0.00020821,2]
[358779404,1745422268840,-733.07,0.00020821,2]
[358779405,1745422268850,-500.0,0.00020821,2]
[358779406,1745422268859,-500.0,0.00020821,2]
[358779407,1745422268870,-500.0,0.00020821,2]
[358779408,1745422268880,-500.0,0.00020821,2]
[358779409,1745422268893,-500.0,0.00020821,2]
[358779410,1745422268903,-500.0,0.00020821,2]
[358779411,1745422268913,-500.0,0.00020821,2]
[358779412,1745422268922,-524.46612513,0.00020821,2]
[358779413,1745422268931,-500.0,0.00020821,2]
[358779414,1745422268941,-500.0,0.00020821,2]
[358779415,1745422268951,-500.0,0.00020821,2]
[358779416,1745422268961,-559.8,0.00020821,2]
[358779417,1745422268971,-564.99,0.00020821,2]
[358779418,1745422268980,-551.66,0.00020821,2]
[358779419,1745422268991,-500.0,0.00020821,2]
[358779420,1745422269001,-500.0,0.00020821,2]
[358779421,1745422269011,-1261.588818,0.00020821,2]
[358779422,1745422269020,-1261.588818,0.00020821,2]
[358779423,1745422269030,-500.0,0.00020821,2]
[358779424,1745422269039,-500.0,0.00020821,2]
[358779425,1745422269050,-336.0411626,0.00020821,2]
[358779426,1745422269059,-500.0,0.00020821,2]
[358779427,1745422269069,-762.07,0.00020821,2]
[358779428,1745422269078,-1115.7,0.00020821,2]
[358779429,1745422269088,-500.0,0.00020821,2]
[358779430,1745422269098,-151.0,0.00020821,2]
[358779431,1745422269107,-688.43,0.00020821,2]
[358779432,1745422269276,-151.0,0.00020821,2]
[358779433,1745422269291,-500.0,0.00020821,2]
[358779434,1745422269301,-2630.14,0.00020821,2]
[358779435,1745422269310,-500.0,0.00020821,2]
[358779436,1745422269320,-500.0,0.00020821,2]
[358779437,1745422269330,-158.11794614,0.00020821,2]
[358779438,1745422269339,-287.55845324,0.00020821,2]
[358779439,1745422269349,-500.0,0.00020821,2]
[358779440,1745422269358,-500.0,0.00020821,2]
[358779441,1745422269368,-764.95,0.00020821,2]
[358779442,1745422269377,-884.75,0.00020821,2]
[358779443,1745422269391,-500.0,0.00020821,2]
[358779444,1745422269400,-270.16498901,0.00020821,2]
[358779445,1745422269410,-3501.3,0.00020821,2]
[358779446,1745422269419,-500.0,0.00020821,2]
[358779447,1745422269429,-500.0,0.00020821,2]
[358779448,1745422269438,-1338.63,0.00020821,2]
[358779449,1745422269447,-502.07,0.00020821,2]
[358779450,1745422269457,-577.68,0.00020821,2]
[358779451,1745422269466,-500.0,0.00020821,2]
[358779452,1745422269475,-4051.75,0.00020821,2]
[358779453,1745422269485,-500.0,0.00020821,2]
[358779454,1745422269495,-500.0,0.00020821,2]
[358779455,1745422269504,-668.05,0.00020821,2]
[358779456,1745422269513,-500.0,0.00020821,2]
[358779457,1745422269526,-500.0,0.00020821,2]
[358779458,1745422269536,-195.822074,0.00020821,2]
[358779459,1745422269547,-195.822074,0.00020821,2]
[358779460,1745422269556,-500.0,0.00020821,2]
[358779461,1745422269567,-500.0,0.00020821,2]
[358779462,1745422269576,-633.95,0.00020821,2]
[358779463,1745422269586,-500.0,0.00020821,2]
[358779464,1745422269596,-1302.8,0.00020821,2]
[358779465,1745422269606,-500.0,0.00020821,2]
[358779466,1745422269615,-1153.65,0.00020821,2]
[358779467,1745422269625,-553.58,0.00020821,2]
[358779468,1745422269639,-716.26,0.00020821,2]
[358779469,1745422269649,-500.0,0.00020821,2]
[358779470,1745422269659,-500.0,0.00020821,2]
[358779471,1745422269668,-500.0,0.00020821,2]
[358779472,1745422269678,-500.0,0.00020821,2]
[358779473,1745422269688,-500.0,0.00020821,2]
[358779474,1745422269697,-12296.18,0.00020821,2]
[358779475,1745422269707,-500.0,0.00020821,2]
[358779476,1745422269717,-1046.67,0.00020821,2]
[358779477,1745422269726,-500.0,0.00020821,2]
[358779478,1745422269736,-851.89,0.00020821,2]
[358779479,1745422269746,-500.0,0.00020821,2]
[358779480,1745422269756,-534.56,0.00020821,2]
[358779481,1745422269766,-1188.25,0.00020821,2]
[358779482,1745422269775,-500.0,0.00020821,2]
[358779483,1745422269785,-500.0,0.00020821,2]
[358779484,1745422269795,-500.0,0.00020821,2]
[358779485,1745422270012,-731.6,0.00020821,2]
[358779486,1745422270023,-12626.43,0.00020821,2]
[358779487,1745422270033,-696.88,0.00020821,2]
[358779488,1745422270043,-377.820616,0.00020821,2]
[358779489,1745422270053,-500.0,0.00020821,2]
[358779490,1745422270063,-1205.58,0.00020821,2]
[358779491,1745422270072,-377.820616,0.00020821,2]
[358779492,1745422270082,-151.0,0.00020821,2]
[358779493,1745422270092,-151.0,0.00020821,2]
[358779494,1745422270102,-500.0,0.00020821,2]
[358779495,1745422270112,-500.0,0.00020821,2]
[358779496,1745422270121,-500.0,0.00020821,2]
[358779497,1745422270131,-500.0,0.00020821,2]
[358779498,1745422270142,-500.0,0.00020821,2]
[358779499,1745422270152,-1012.84,0.00020821,2]
[358779500,1745422270161,-500.0,0.00020821,2]
[358779501,1745422270171,-4914.19,0.00020821,2]
[358779502,1745422270181,-500.0,0.00020821,2]
[358779503,1745422270191,-4299.91,0.00020821,2]
[358779504,1745422270200,-510.48,0.00020821,2]
[358779505,1745422270210,-707.64,0.00020821,2]
[358779506,1745422270220,-1181.56,0.00020821,2]
[358779507,1745422270230,-1035.17,0.00020821,2]
[358779508,1745422270240,-214.80689915,0.00020821,2]
[358779509,1745422270250,-863.0,0.00020821,2]
[358779510,1745422270260,-834.94,0.00020821,2]
[358779511,1745422270270,-3435.75,0.00020821,2]
[358779512,1745422270280,-2278.45,0.00020821,2]
[358779513,1745422270290,-753.56,0.00020821,2]
[358779514,1745422270300,-500.0,0.00020821,2]
[358779515,1745422270310,-530.38,0.00020821,2]
[358779516,1745422270320,-814.85,0.00020821,2]
[358779517,1745422270329,-535.21,0.00020821,2]
[358779518,1745422270339,-500.0,0.00020821,2]
[358779519,1745422270349,-500.0,0.00020821,2]
[358779520,1745422270359,-500.0,0.00020821,2]
[358779521,1745422270368,-500.0,0.00020821,2]
[358779522,1745422270378,-890.07,0.00020821,2]
[358779523,1745422270391,-615.6,0.00020821,2]
[358779524,1745422270401,-957.38,0.00020821,2]
[358779525,1745422270411,-558.82,0.00020821,2]
[358779526,1745422270421,-926.97,0.00020821,2]
[358779527,1745422270430,-707.38,0.00020821,2]
[358779528,1745422270440,-1273.56,0.00020821,2]
[358779529,1745422270450,-500.0,0.00020821,2]
[358779530,1745422270459,-500.0,0.00020821,2]
[358779531,1745422270469,-500.0,0.00020821,2]
[358779532,1745422270479,-1103.17,0.00020821,2]
[358779533,1745422270488,-500.0,0.00020821,2]
[358779534,1745422270497,-500.0,0.00020821,2]
[358779535,1745422270507,-500.0,0.00020821,2]
[358779536,1745422270516,-353.72501819,0.00020821,2]
[358779537,1745422270526,-500.0,0.00020821,2]
[358779538,1745422270536,-500.0,0.00020821,2]
[358779539,1745422270545,-500.0,0.00020821,2]
[358779540,1745422270555,-500.0,0.00020821,2]
[358779541,1745422270565,-500.0,0.00020821,2]
[358779542,1745422270575,-500.0,0.00020821,2]
[358779543,1745422270585,-657.04,0.00020821,2]
[358779544,1745422270594,-500.0,0.00020821,2]
[358779545,1745422270603,-500.0,0.00020821,2]
[358779546,1745422270613,-500.0,0.00020821,2]
[358779547,1745422270622,-624.11636271,0.00020821,2]
[358779548,1745422270632,-500.0,0.00020821,2]
[358779549,1745422270645,-2543.41,0.00020821,2]
[358779550,1745422270655,-1609.82,0.00020821,2]
[358779551,1745422270664,-783.91,0.00020821,2]
[358779552,1745422270674,-7498.68,0.00020821,2]
[358779553,1745422270683,-500.0,0.00020821,2]